[Event "*** SCC Grand Prix: Titled Tuesday Blitz"]
[Site "Chess.com"]
[Date "2020.06.23"]
[Round "2"]
[White "Angel_Hranitel_37"]
[Black "Efremov_Vlad"]
[Result "1-0"]
[WhiteElo "2429"]
[BlackElo "2194"]
[TimeControl "180+1"]
[EndTime "10:19:10 PDT"]
[Termination "Angel_Hranitel_37 won on time"]

1. d4 {[%clk 0:03:00.9]} 1... d5 {[%clk 0:02:57.6]} 2. c4 {[%clk 0:03:01.1]}
2... e6 {[%clk 0:02:57.4]} 3. Nf3 {[%clk 0:03:01.5]} 3... Nf6 {[%clk 0:02:56.9]}
4. g3 {[%clk 0:03:01.7]} 4... dxc4 {[%clk 0:02:57.4]} 5. Bg2 {[%clk 0:03:02.1]}
5... Nc6 {[%clk 0:02:57.4]} 6. Qa4 {[%clk 0:03:01.3]} 6... Nd7 {[%clk
0:02:56.5]} 7. Qxc4 {[%clk 0:03:00.8]} 7... Nb6 {[%clk 0:02:56.7]} 8. Qd3 {[%clk
0:03:01.2]} 8... e5 {[%clk 0:02:56.2]} 9. dxe5 {[%clk 0:02:39.3]} 9... Qxd3
{[%clk 0:02:53.9]} 10. exd3 {[%clk 0:02:40.2]} 10... Nb4 {[%clk 0:02:54.3]} 11.
Na3 {[%clk 0:02:22.3]} 11... Nxd3+ {[%clk 0:02:49.6]} 12. Ke2 {[%clk 0:02:22.4]}
12... Nxc1+ {[%clk 0:02:46.9]} 13. Raxc1 {[%clk 0:02:23.3]} 13... Bxa3 {[%clk
0:02:43.7]} 14. bxa3 {[%clk 0:02:22.8]} 14... c6 {[%clk 0:02:43.8]} 15. Nd4
{[%clk 0:02:18.6]} 15... Bd7 {[%clk 0:02:38.9]} 16. Rb1 {[%clk 0:02:13.6]} 16...
O-O-O {[%clk 0:02:36]} 17. Nb3 {[%clk 0:02:05.1]} 17... Be6 {[%clk 0:02:31.8]}
18. Rhc1 {[%clk 0:00:53.8]} 18... Bd5 {[%clk 0:02:16.6]} 19. Bh3+ {[%clk
0:00:46.3]} 19... Kc7 {[%clk 0:02:08]} 20. f4 {[%clk 0:00:44]} 20... Rhe8 {[%clk
0:02:05]} 21. Kf2 {[%clk 0:00:20.4]} 21... Bxb3 {[%clk 0:01:26.5]} 22. axb3
{[%clk 0:00:21.3]} 22... Rd2+ {[%clk 0:01:26.2]} 23. Kg1 {[%clk 0:00:17.4]}
23... Red8 {[%clk 0:01:25.3]} 24. Rf1 {[%clk 0:00:02.6]} 24... Ra2 {[%clk
0:01:06.7]} 25. Rf2 {[%clk 0:00:02.9]} 25... Rxa3 {[%clk 0:01:06]} 26. f5 {[%clk
0:00:03.2]} 26... Ra5 {[%clk 0:00:44.8]} 27. f6 {[%clk 0:00:02.6]} 27... Rxe5
{[%clk 0:00:23.9]} 28. fxg7 {[%clk 0:00:02.3]} 28... Re7 {[%clk 0:00:24.6]} 29.
Rbf1 {[%clk 0:00:02.2]} 29... Rg8 {[%clk 0:00:24.1]} 30. Rxf7 {[%clk 0:00:02.3]}
30... Rxg7 {[%clk 0:00:24.8]} 31. Rxg7 {[%clk 0:00:02.2]} 31... Rxg7 {[%clk
0:00:24.2]} 32. Rf8 {[%clk 0:00:03]} 32... Nd5 {[%clk 0:00:22.5]} 33. Ra8 {[%clk
0:00:03]} 33... a6 {[%clk 0:00:20.6]} 34. Bf5 {[%clk 0:00:03.4]} 34... Nb6
{[%clk 0:00:18.1]} 35. Rh8 {[%clk 0:00:03.1]} 35... a5 {[%clk 0:00:15.8]} 36.
Rxh7 {[%clk 0:00:03.6]} 36... Rxh7 {[%clk 0:00:15.9]} 37. Bxh7 {[%clk
0:00:04.5]} 37... a4 {[%clk 0:00:15.3]} 38. bxa4 {[%clk 0:00:05.4]} 38... Nxa4
{[%clk 0:00:16]} 39. g4 {[%clk 0:00:06.2]} 39... Kd6 {[%clk 0:00:14.5]} 40. g5
{[%clk 0:00:06.7]} 40... Ke7 {[%clk 0:00:14.2]} 41. h4 {[%clk 0:00:07]} 41...
Nc5 {[%clk 0:00:12.6]} 42. h5 {[%clk 0:00:07.4]} 42... Ne4 {[%clk 0:00:12.2]}
43. g6 {[%clk 0:00:07]} 43... Kf6 {[%clk 0:00:08.6]} 44. h6 {[%clk 0:00:06.2]}
44... Ng5 {[%clk 0:00:03.8]} 45. g7 {[%clk 0:00:05.7]} 1-0

[Event "*** SCC Grand Prix: Titled Tuesday Blitz"]
[Site "Chess.com"]
[Date "2020.06.23"]
[Round "2"]
[White "bait_or_mate"]
[Black "Grischuk"]
[Result "0-1"]
[WhiteElo "2612"]
[BlackElo "3107"]
[TimeControl "180+1"]
[EndTime "10:19:11 PDT"]
[Termination "Grischuk won on time"]

1. d4 {[%clk 0:03:00.9]} 1... Nf6 {[%clk 0:02:59.2]} 2. c4 {[%clk 0:03:01]} 2...
g6 {[%clk 0:02:59.7]} 3. Nc3 {[%clk 0:03:00.9]} 3... Bg7 {[%clk 0:03:00.2]} 4.
e4 {[%clk 0:03:01.4]} 4... d6 {[%clk 0:03:00.8]} 5. Nf3 {[%clk 0:03:01.8]} 5...
O-O {[%clk 0:03:00.6]} 6. Be2 {[%clk 0:03:02.4]} 6... e5 {[%clk 0:02:59]} 7. O-O
{[%clk 0:03:02.8]} 7... Na6 {[%clk 0:02:53.9]} 8. dxe5 {[%clk 0:03:01.9]} 8...
dxe5 {[%clk 0:02:54.8]} 9. Be3 {[%clk 0:03:02.5]} 9... c6 {[%clk 0:02:49.3]} 10.
Qxd8 {[%clk 0:02:49.1]} 10... Rxd8 {[%clk 0:02:50.2]} 11. Rad1 {[%clk
0:02:49.3]} 11... Re8 {[%clk 0:02:50.1]} 12. h3 {[%clk 0:02:47.1]} 12... Nh5
{[%clk 0:02:47.2]} 13. b3 {[%clk 0:02:35]} 13... Nf4 {[%clk 0:02:46.4]} 14. Rd2
{[%clk 0:02:29.4]} 14... Bf8 {[%clk 0:02:23.3]} 15. Rc1 {[%clk 0:02:06.7]} 15...
Ba3 {[%clk 0:02:20.7]} 16. Re1 {[%clk 0:01:45.2]} 16... Bb4 {[%clk 0:02:17.7]}
17. Rc2 {[%clk 0:01:45.2]} 17... Nxe2+ {[%clk 0:02:08.2]} 18. Rexe2 {[%clk
0:01:44.3]} 18... f6 {[%clk 0:02:08.4]} 19. Red2 {[%clk 0:01:41.6]} 19... Be6
{[%clk 0:02:06.6]} 20. Kf1 {[%clk 0:01:39.5]} 20... b6 {[%clk 0:01:58.4]} 21.
Ke2 {[%clk 0:01:35.8]} 21... Kf7 {[%clk 0:01:56.5]} 22. Rd1 {[%clk 0:01:31.1]}
22... Nc5 {[%clk 0:01:39.6]} 23. Bxc5 {[%clk 0:01:15.9]} 23... Bxc5 {[%clk
0:01:40.5]} 24. Na4 {[%clk 0:01:10.6]} 24... Be7 {[%clk 0:01:38]} 25. Ne1 {[%clk
0:01:04.1]} 25... Rec8 {[%clk 0:01:25.4]} 26. Nb2 {[%clk 0:00:54.5]} 26... h5
{[%clk 0:01:00]} 27. Ned3 {[%clk 0:00:52.5]} 27... Rd8 {[%clk 0:00:58.9]} 28. f3
{[%clk 0:00:38.7]} 28... Rd4 {[%clk 0:00:56]} 29. Nf2 {[%clk 0:00:26]} 29... f5
{[%clk 0:00:43.9]} 30. Rxd4 {[%clk 0:00:21]} 30... exd4 {[%clk 0:00:44.8]} 31.
Nbd3 {[%clk 0:00:21.1]} 31... c5 {[%clk 0:00:41.6]} 32. Kd1 {[%clk 0:00:16.4]}
32... Bd6 {[%clk 0:00:33.6]} 33. Re2 {[%clk 0:00:16.3]} 33... a6 {[%clk
0:00:21.3]} 34. exf5 {[%clk 0:00:16.3]} 34... gxf5 {[%clk 0:00:20.6]} 35. Ne5+
{[%clk 0:00:15]} 35... Kf6 {[%clk 0:00:20.9]} 36. Nfd3 {[%clk 0:00:14.8]} 36...
h4 {[%clk 0:00:20.2]} 37. Nf4 {[%clk 0:00:12.2]} 37... Bxe5 {[%clk 0:00:19]} 38.
Nxe6 {[%clk 0:00:12.6]} 38... Bd6 {[%clk 0:00:13.8]} 39. f4 {[%clk 0:00:10.8]}
39... Rg8 {[%clk 0:00:11.5]} 40. Kd2 {[%clk 0:00:06.8]} 40... Rg3 {[%clk
0:00:10.9]} 41. Nd8 {[%clk 0:00:04.6]} 41... Bxf4+ {[%clk 0:00:10.7]} 42. Kd1
{[%clk 0:00:05.2]} 42... Be3 {[%clk 0:00:10.1]} 43. Kc2 {[%clk 0:00:04.1]} 43...
f4 {[%clk 0:00:05.9]} 44. Nc6 {[%clk 0:00:03.5]} 44... Kf5 {[%clk 0:00:05.6]}
45. Nb8 {[%clk 0:00:03.4]} 45... Ke4 {[%clk 0:00:05]} 0-1

[Event "*** SCC Grand Prix: Titled Tuesday Blitz"]
[Site "Chess.com"]
[Date "2020.06.23"]
[Round "2"]
[White "Schandenfreude"]
[Black "51616516516"]
[Result "0-1"]
[WhiteElo "2513"]
[BlackElo "2321"]
[TimeControl "180+1"]
[EndTime "10:19:12 PDT"]
[Termination "51616516516 won on time"]

1. Nf3 {[%clk 0:03:00.9]} 1... Nf6 {[%clk 0:02:59.3]} 2. c4 {[%clk 0:03:00.5]}
2... b6 {[%clk 0:02:56.7]} 3. b3 {[%clk 0:02:50.8]} 3... Bb7 {[%clk 0:02:55.8]}
4. Bb2 {[%clk 0:02:50.8]} 4... g6 {[%clk 0:02:55.1]} 5. e3 {[%clk 0:02:43.3]}
5... Bg7 {[%clk 0:02:54.6]} 6. g3 {[%clk 0:02:43.2]} 6... O-O {[%clk 0:02:38.9]}
7. Bg2 {[%clk 0:02:42.7]} 7... d6 {[%clk 0:02:36.7]} 8. d4 {[%clk 0:02:31.3]}
8... Nbd7 {[%clk 0:02:30.5]} 9. O-O {[%clk 0:02:30.8]} 9... e5 {[%clk 0:02:30]}
10. dxe5 {[%clk 0:02:28.4]} 10... Ng4 {[%clk 0:02:29.7]} 11. Nc3 {[%clk
0:02:27.6]} 11... Ngxe5 {[%clk 0:02:24.6]} 12. Nxe5 {[%clk 0:02:25.3]} 12...
Bxg2 {[%clk 0:02:22.2]} 13. Nxd7 {[%clk 0:02:08.2]} 13... Bxf1 {[%clk
0:02:13.2]} 14. Nxf8 {[%clk 0:02:05.5]} 14... Bh3 {[%clk 0:02:09.9]} 15. Nxh7
{[%clk 0:01:37.8]} 15... Kxh7 {[%clk 0:02:01.5]} 16. Qd2 {[%clk 0:01:29.6]}
16... Qe7 {[%clk 0:01:44.2]} 17. Nd5 {[%clk 0:01:19.9]} 17... Qe4 {[%clk
0:01:41.6]} 18. Nf4 {[%clk 0:01:15.3]} 18... Bg4 {[%clk 0:01:10.2]} 19. Bxg7
{[%clk 0:01:09.4]} 19... Kxg7 {[%clk 0:01:11.1]} 20. Qd5 {[%clk 0:00:55.6]}
20... Qe5 {[%clk 0:00:42]} 21. Qxe5+ {[%clk 0:00:26.7]} 21... dxe5 {[%clk
0:00:42.9]} 22. Nd5 {[%clk 0:00:22]} 22... c6 {[%clk 0:00:40.5]} 23. Nb4 {[%clk
0:00:20.5]} 23... Rc8 {[%clk 0:00:37.1]} 24. Kg2 {[%clk 0:00:17.9]} 24... e4
{[%clk 0:00:36.6]} 25. Kf1 {[%clk 0:00:13.7]} 25... a5 {[%clk 0:00:30]} 26. Nc2
{[%clk 0:00:13.6]} 26... Rd8 {[%clk 0:00:29.5]} 27. Ke1 {[%clk 0:00:12.5]} 27...
g5 {[%clk 0:00:19.7]} 28. Nd4 {[%clk 0:00:11.9]} 28... c5 {[%clk 0:00:18.5]} 29.
Ne2 {[%clk 0:00:09.6]} 29... Rh8 {[%clk 0:00:17.7]} 30. h4 {[%clk 0:00:09.7]}
30... gxh4 {[%clk 0:00:16.1]} 31. gxh4 {[%clk 0:00:10.6]} 31... Rxh4 {[%clk
0:00:16]} 32. Ng3 {[%clk 0:00:10.1]} 32... Bf3 {[%clk 0:00:13]} 33. Rc1 {[%clk
0:00:09]} 33... Rh8 {[%clk 0:00:06.6]} 34. Rc2 {[%clk 0:00:08.4]} 34... Rd8
{[%clk 0:00:04.1]} 35. Rd2 {[%clk 0:00:08.4]} 35... Rxd2 {[%clk 0:00:03.9]} 36.
Kxd2 {[%clk 0:00:08.6]} 36... Kf6 {[%clk 0:00:04.8]} 37. Kc3 {[%clk 0:00:02.9]}
37... Ke5 {[%clk 0:00:05.1]} 38. Nf1 {[%clk 0:00:03]} 38... f5 {[%clk 0:00:05]}
39. Nd2 {[%clk 0:00:02.1]} 39... Be2 {[%clk 0:00:05.4]} 40. Kc2 {[%clk
0:00:02.2]} 40... Bd3+ {[%clk 0:00:05.9]} 41. Kc3 {[%clk 0:00:02.5]} 41... f4
{[%clk 0:00:06.8]} 0-1

[Event "*** SCC Grand Prix: Titled Tuesday Blitz"]
[Site "Chess.com"]
[Date "2020.06.23"]
[Round "2"]
[White "kakakz"]
[Black "TheSodabread"]
[Result "0-1"]
[WhiteElo "2342"]
[BlackElo "1919"]
[TimeControl "180+1"]
[EndTime "10:19:12 PDT"]
[Termination "TheSodabread won on time"]

1. d4 {[%clk 0:03:00]} 1... f5 {[%clk 0:02:58.2]} 2. c4 {[%clk 0:02:59.1]} 2...
Nf6 {[%clk 0:02:58.3]} 3. Nc3 {[%clk 0:03:00]} 3... e6 {[%clk 0:02:58.3]} 4. f3
{[%clk 0:03:00.1]} 4... Bb4 {[%clk 0:02:38.8]} 5. Qb3 {[%clk 0:02:57]} 5...
Bxc3+ {[%clk 0:02:36.2]} 6. Qxc3 {[%clk 0:02:56]} 6... O-O {[%clk 0:02:36.6]} 7.
Bg5 {[%clk 0:02:54.5]} 7... d6 {[%clk 0:02:33.5]} 8. e3 {[%clk 0:02:49.3]} 8...
Nbd7 {[%clk 0:02:32.7]} 9. Bd3 {[%clk 0:02:44.5]} 9... b6 {[%clk 0:02:31.7]} 10.
Nh3 {[%clk 0:02:32.2]} 10... Bb7 {[%clk 0:02:30.8]} 11. O-O {[%clk 0:02:14.3]}
11... Qe8 {[%clk 0:02:24.4]} 12. Rae1 {[%clk 0:02:10.6]} 12... e5 {[%clk
0:02:19.4]} 13. Bxf5 {[%clk 0:02:06.4]} 13... e4 {[%clk 0:02:08]} 14. d5 {[%clk
0:01:31.5]} 14... exf3 {[%clk 0:02:04]} 15. gxf3 {[%clk 0:01:21.7]} 15... Ne5
{[%clk 0:01:57.7]} 16. Be6+ {[%clk 0:01:17.5]} 16... Kh8 {[%clk 0:01:57.4]} 17.
e4 {[%clk 0:01:08]} 17... h6 {[%clk 0:01:50.8]} 18. Bh4 {[%clk 0:01:01.8]} 18...
Bc8 {[%clk 0:01:27.2]} 19. f4 {[%clk 0:00:55.2]} 19... Ng6 {[%clk 0:01:26.2]}
20. Bxf6 {[%clk 0:00:53.7]} 20... Rxf6 {[%clk 0:01:27.1]} 21. f5 {[%clk
0:00:50]} 21... Bxe6 {[%clk 0:01:23.1]} 22. dxe6 {[%clk 0:00:46.8]} 22... Ne5
{[%clk 0:01:22.7]} 23. b3 {[%clk 0:00:46.1]} 23... g6 {[%clk 0:01:21.1]} 24. Qe3
{[%clk 0:00:25.8]} 24... Kh7 {[%clk 0:01:19.3]} 25. Re2 {[%clk 0:00:20.4]} 25...
Qe7 {[%clk 0:01:16.6]} 26. Ref2 {[%clk 0:00:16.4]} 26... Rg8 {[%clk 0:01:15.2]}
27. Kh1 {[%clk 0:00:16.2]} 27... Ng4 {[%clk 0:01:10.9]} 28. Qf4 {[%clk 0:00:15]}
28... Nxf2+ {[%clk 0:01:10.4]} 29. Rxf2 {[%clk 0:00:15.3]} 29... Rgf8 {[%clk
0:01:06.7]} 30. Qh4 {[%clk 0:00:14.3]} 30... Qg7 {[%clk 0:01:04.2]} 31. Ng5+
{[%clk 0:00:14]} 31... Kg8 {[%clk 0:01:02.4]} 32. Nf7 {[%clk 0:00:13.5]} 32...
R8xf7 {[%clk 0:01:00.4]} 33. exf7+ {[%clk 0:00:13.6]} 33... Kxf7 {[%clk
0:01:00.8]} 34. fxg6+ {[%clk 0:00:12.7]} 34... Qxg6 {[%clk 0:01:01.7]} 35. Rxf6+
{[%clk 0:00:11.7]} 35... Qxf6 {[%clk 0:01:02.6]} 36. Qh5+ {[%clk 0:00:12.6]}
36... Ke6 {[%clk 0:01:02.6]} 37. Qd5+ {[%clk 0:00:12.4]} 37... Kd7 {[%clk
0:01:01.4]} 38. Kg2 {[%clk 0:00:11.5]} 38... Qe5 {[%clk 0:00:42.4]} 39. Qf7+
{[%clk 0:00:06.2]} 39... Kc6 {[%clk 0:00:41.9]} 40. Qd5+ {[%clk 0:00:06.1]}
40... Qxd5 {[%clk 0:00:41.9]} 41. exd5+ {[%clk 0:00:06.1]} 41... Kc5 {[%clk
0:00:41.1]} 42. Kg3 {[%clk 0:00:07]} 42... Kb4 {[%clk 0:00:38.8]} 43. Kg4 {[%clk
0:00:07.3]} 43... Ka3 {[%clk 0:00:38]} 44. Kh5 {[%clk 0:00:07.9]} 44... Kxa2
{[%clk 0:00:38.4]} 45. Kxh6 {[%clk 0:00:08.8]} 45... Kxb3 {[%clk 0:00:38.8]} 46.
h4 {[%clk 0:00:09.7]} 46... a5 {[%clk 0:00:38.8]} 47. Kg6 {[%clk 0:00:09.1]}
47... a4 {[%clk 0:00:39.2]} 48. h5 {[%clk 0:00:10]} 48... a3 {[%clk 0:00:39.6]}
49. h6 {[%clk 0:00:10.9]} 49... a2 {[%clk 0:00:40.2]} 50. h7 {[%clk 0:00:11.8]}
50... a1=Q {[%clk 0:00:40.7]} 51. h8=Q {[%clk 0:00:12.7]} 51... Qxh8 {[%clk
0:00:40.8]} 0-1

[Event "*** SCC Grand Prix: Titled Tuesday Blitz"]
[Site "Chess.com"]
[Date "2020.06.23"]
[Round "2"]
[White "tsvet2005"]
[Black "Phriex"]
[Result "0-1"]
[WhiteElo "2640"]
[BlackElo "2387"]
[TimeControl "180+1"]
[EndTime "10:19:13 PDT"]
[Termination "Phriex won on time"]

1. d4 {[%clk 0:03:00.9]} 1... d5 {[%clk 0:02:59]} 2. c4 {[%clk 0:02:59.5]} 2...
e6 {[%clk 0:02:59.3]} 3. Nc3 {[%clk 0:02:59.9]} 3... Be7 {[%clk 0:02:59.3]} 4.
cxd5 {[%clk 0:03:00]} 4... exd5 {[%clk 0:03:00.2]} 5. Bf4 {[%clk 0:03:00.3]}
5... c6 {[%clk 0:03:00.8]} 6. e3 {[%clk 0:03:00.5]} 6... Bd6 {[%clk 0:03:01.4]}
7. Bxd6 {[%clk 0:03:00.7]} 7... Qxd6 {[%clk 0:03:02.3]} 8. Bd3 {[%clk
0:03:00.9]} 8... Ne7 {[%clk 0:03:02.8]} 9. Nf3 {[%clk 0:02:58.2]} 9... Bf5
{[%clk 0:03:02]} 10. O-O {[%clk 0:02:58.4]} 10... O-O {[%clk 0:03:01.6]} 11. Re1
{[%clk 0:02:47.7]} 11... Nd7 {[%clk 0:02:59.7]} 12. Bxf5 {[%clk 0:02:43.6]}
12... Nxf5 {[%clk 0:02:59.6]} 13. Qd3 {[%clk 0:02:44.5]} 13... g6 {[%clk
0:02:56.5]} 14. e4 {[%clk 0:02:43.4]} 14... dxe4 {[%clk 0:02:56.2]} 15. Nxe4
{[%clk 0:02:44.3]} 15... Qc7 {[%clk 0:02:41.9]} 16. d5 {[%clk 0:02:42.8]} 16...
cxd5 {[%clk 0:02:37.2]} 17. Qxd5 {[%clk 0:02:43.7]} 17... Rad8 {[%clk
0:02:32.6]} 18. Rac1 {[%clk 0:02:38.3]} 18... Qb6 {[%clk 0:02:30]} 19. Rcd1
{[%clk 0:02:30.7]} 19... Qxb2 {[%clk 0:02:18.2]} 20. Rd2 {[%clk 0:02:22.3]}
20... Qb6 {[%clk 0:02:14.7]} 21. Qc4 {[%clk 0:01:34.2]} 21... Nf6 {[%clk
0:02:00.9]} 22. Rxd8 {[%clk 0:01:32.4]} 22... Qxd8 {[%clk 0:01:56.4]} 23. Neg5
{[%clk 0:01:24.9]} 23... Qd5 {[%clk 0:01:52.2]} 24. Qc3 {[%clk 0:01:10]} 24...
Qc6 {[%clk 0:01:46.2]} 25. Qb2 {[%clk 0:01:02.6]} 25... h6 {[%clk 0:01:44.5]}
26. Nh3 {[%clk 0:00:40.2]} 26... Re8 {[%clk 0:01:44.8]} 27. Rxe8+ {[%clk
0:00:38]} 27... Nxe8 {[%clk 0:01:43.7]} 28. Nf4 {[%clk 0:00:37.9]} 28... Ned6
{[%clk 0:01:30.7]} 29. h3 {[%clk 0:00:34.4]} 29... Qe4 {[%clk 0:01:27.7]} 30.
Qd2 {[%clk 0:00:24.5]} 30... b5 {[%clk 0:01:16.4]} 31. Nd5 {[%clk 0:00:24.3]}
31... Qe6 {[%clk 0:00:56.7]} 32. Nc7 {[%clk 0:00:21.9]} 32... Qc4 {[%clk
0:00:50.2]} 33. Nd5 {[%clk 0:00:22.2]} 33... Ne4 {[%clk 0:00:48.1]} 34. Qd1
{[%clk 0:00:18]} 34... Qxa2 {[%clk 0:00:41.9]} 35. Ne7+ {[%clk 0:00:06.1]} 35...
Nxe7 {[%clk 0:00:40.8]} 36. Qd8+ {[%clk 0:00:06.5]} 36... Kg7 {[%clk 0:00:38.5]}
37. Qxe7 {[%clk 0:00:07.4]} 37... Qxf2+ {[%clk 0:00:37.7]} 38. Kh1 {[%clk
0:00:07.8]} 38... Ng3+ {[%clk 0:00:31]} 39. Kh2 {[%clk 0:00:07.6]} 39... Nf5
{[%clk 0:00:22]} 40. Qe5+ {[%clk 0:00:07.1]} 40... Kh7 {[%clk 0:00:22.1]} 41.
Qf6 {[%clk 0:00:06.1]} 41... Qg3+ {[%clk 0:00:18.9]} 42. Kh1 {[%clk 0:00:06.1]}
42... Qc7 {[%clk 0:00:15.6]} 43. Ne5 {[%clk 0:00:06.6]} 43... Kg8 {[%clk
0:00:10.1]} 44. Nc6 {[%clk 0:00:03.6]} 44... Ng3+ {[%clk 0:00:08.4]} 45. Kg1
{[%clk 0:00:03.5]} 45... Nf5 {[%clk 0:00:05.6]} 46. Ne5 {[%clk 0:00:02.9]} 46...
Qb6+ {[%clk 0:00:05.5]} 0-1

[Event "*** SCC Grand Prix: Titled Tuesday Blitz"]
[Site "Chess.com"]
[Date "2020.06.23"]
[Round "2"]
[White "DenisQ"]
[Black "budda"]
[Result "0-1"]
[WhiteElo "2636"]
[BlackElo "2338"]
[TimeControl "180+1"]
[EndTime "10:19:14 PDT"]
[Termination "budda won on time"]

1. Nf3 {[%clk 0:03:00.9]} 1... Nf6 {[%clk 0:02:58.2]} 2. c4 {[%clk 0:03:00.1]}
2... e6 {[%clk 0:02:57.6]} 3. g3 {[%clk 0:02:59.3]} 3... d5 {[%clk 0:02:57.9]}
4. Bg2 {[%clk 0:02:58.8]} 4... Be7 {[%clk 0:02:58]} 5. O-O {[%clk 0:02:58.4]}
5... O-O {[%clk 0:02:58.4]} 6. d4 {[%clk 0:02:57.9]} 6... c6 {[%clk 0:02:58.4]}
7. Qc2 {[%clk 0:02:53.8]} 7... Nbd7 {[%clk 0:02:58.7]} 8. Nbd2 {[%clk
0:02:52.9]} 8... b6 {[%clk 0:02:58.8]} 9. b3 {[%clk 0:02:52.6]} 9... Bb7 {[%clk
0:02:59.1]} 10. Bb2 {[%clk 0:02:52.8]} 10... Rc8 {[%clk 0:02:59.5]} 11. e4
{[%clk 0:02:52.1]} 11... c5 {[%clk 0:02:58.1]} 12. exd5 {[%clk 0:02:51.3]} 12...
exd5 {[%clk 0:02:58]} 13. Qf5 {[%clk 0:02:44.8]} 13... dxc4 {[%clk 0:02:45]} 14.
Nxc4 {[%clk 0:02:42.8]} 14... cxd4 {[%clk 0:02:31.6]} 15. Bxd4 {[%clk 0:02:41]}
15... Nc5 {[%clk 0:01:28.7]} 16. Rad1 {[%clk 0:02:30.2]} 16... Qc7 {[%clk
0:01:28.8]} 17. Rfe1 {[%clk 0:02:02.1]} 17... Rfd8 {[%clk 0:01:28.1]} 18. Ng5
{[%clk 0:01:55.7]} 18... Bxg2 {[%clk 0:01:26.8]} 19. Bxf6 {[%clk 0:01:51.2]}
19... g6 {[%clk 0:01:13.5]} 20. Rxd8+ {[%clk 0:01:16.3]} 20... Rxd8 {[%clk
0:01:10.1]} 21. Rxe7 {[%clk 0:01:04.8]} 21... Qxe7 {[%clk 0:00:29.7]} 22. Bxe7
{[%clk 0:01:02.8]} 22... Rd1+ {[%clk 0:00:29.2]} 23. Kxg2 {[%clk 0:01:02.1]}
23... gxf5 {[%clk 0:00:30.1]} 24. Bxc5 {[%clk 0:00:50.9]} 24... bxc5 {[%clk
0:00:31]} 25. Nf3 {[%clk 0:00:46.4]} 25... Ra1 {[%clk 0:00:30]} 26. a4 {[%clk
0:00:44.4]} 26... Rb1 {[%clk 0:00:30.3]} 27. Nfd2 {[%clk 0:00:43]} 27... Rd1
{[%clk 0:00:29.6]} 28. Kf3 {[%clk 0:00:42.5]} 28... Kg7 {[%clk 0:00:29.3]} 29.
Ke2 {[%clk 0:00:42.7]} 29... Rh1 {[%clk 0:00:29.7]} 30. h4 {[%clk 0:00:35.9]}
30... f4 {[%clk 0:00:30.2]} 31. Ne5 {[%clk 0:00:30.2]} 31... fxg3 {[%clk
0:00:30]} 32. fxg3 {[%clk 0:00:31]} 32... Rg1 {[%clk 0:00:24.8]} 33. Kf2 {[%clk
0:00:18.9]} 33... Rd1 {[%clk 0:00:24]} 34. Ke2 {[%clk 0:00:18.9]} 34... Rg1
{[%clk 0:00:24.2]} 35. Nf1 {[%clk 0:00:18.2]} 35... Rg2+ {[%clk 0:00:22.9]} 36.
Ke3 {[%clk 0:00:17.6]} 36... Rb2 {[%clk 0:00:22.9]} 37. Nd2 {[%clk 0:00:17.7]}
37... Rc2 {[%clk 0:00:18.8]} 38. Nc6 {[%clk 0:00:15.8]} 38... Rc3+ {[%clk
0:00:19]} 39. Kf2 {[%clk 0:00:13.1]} 39... Rd3 {[%clk 0:00:17.3]} 40. Ne4 {[%clk
0:00:12.7]} 40... Rxb3 {[%clk 0:00:16.2]} 41. Nxa7 {[%clk 0:00:12.7]} 41... c4
{[%clk 0:00:11.5]} 42. Nb5 {[%clk 0:00:12.7]} 42... Rb4 {[%clk 0:00:11.3]} 43.
Nec3 {[%clk 0:00:12.8]} 43... Rb2+ {[%clk 0:00:10]} 44. Ke3 {[%clk 0:00:12.8]}
44... Rg2 {[%clk 0:00:09.8]} 45. a5 {[%clk 0:00:12.3]} 45... Rxg3+ {[%clk
0:00:09.8]} 46. Kf4 {[%clk 0:00:12.6]} 46... Rh3 {[%clk 0:00:09.6]} 47. a6
{[%clk 0:00:12.4]} 47... Rxh4+ {[%clk 0:00:09.6]} 48. Kg5 {[%clk 0:00:12.6]}
48... Rh1 {[%clk 0:00:09.6]} 49. a7 {[%clk 0:00:11.7]} 49... Ra1 {[%clk
0:00:09.8]} 50. Nd5 {[%clk 0:00:11]} 50... Ra5 {[%clk 0:00:08]} 51. Ndc7 {[%clk
0:00:10]} 51... c3 {[%clk 0:00:07.6]} 0-1